Cogmind - Beta 14 @@@ ROGUE MODE // 2024.11.28 @ 02:38:26 Player: akira Result: Destroyed by X-57 Shotgunner with High-powered Shotgun Performance ------------- Evolutions (2) 1000 Regions Visited (5) 1000 Robots Destroyed (154) 770 Value Destroyed (5174) 5174 Prototype IDs (4) 80 Alien Tech Used (0) 0 Bonus (2037) 2037 TOTAL SCORE: 10061 Bonus ------- High Alert Combat Kills 764 Follower Combat Kills 73 Entered Garrisons 200 Used RIF Installer 1000 Cogmind --------- Core Integrity 0/550 Matter 41/300 Energy 124/160 System Corruption 8% Temperature Hot (215) Movement Treading (163) Location -8/Garrison Parts ------- > --- POWER (1) -------- Light Nuclear Core > --- PROPULSION (3) --- Armored Treads Medium Treads Medium Treads > --- UTILITY (4) ------ High-capacity Storage Unit Hardened Heavy Armor Plating Relay Coupler [NC] (28) > --- WEAPON (3) ------- Enhanced Autogun Enhanced Autogun KE Penetrator > --- INVENTORY (20) --- Light Treads Light Treads Improved Treads Improved Heat Sink Large Matter Pod (150) Improved Signal Interpreter Hardened Heavy Armor Plating Hardened Heavy Armor Plating Improved Light Armor Plating Improved Light Armor Plating Relay Coupler [NC] (31) Relay Coupler [Swarmer] (38) Relay Coupler [Hunter] (13) Drone Bay (1/2) Heavy Phase Cannon Heavy Assault Rifle Advanced Assault Cannon Peak State ------------ > --- POWER ------------ Heavy Ion Engine > --- PROPULSION ------- Armored Treads Medium Treads Medium Treads > --- UTILITY ---------- High-capacity Storage Unit Hardened Heavy Armor Plating Drone Bay > --- WEAPON ----------- Enhanced Autogun Enhanced Autogun KE Penetrator > --- INVENTORY -------- Light Nuclear Core Light Treads Light Treads Improved Treads Improved Heat Sink Large Matter Pod Improved Signal Interpreter Hardened Heavy Armor Plating Hardened Heavy Armor Plating Hardened Heavy Armor Plating Improved Light Armor Plating Improved Light Armor Plating Hacking Suite Hacking Suite Heavy Phase Cannon Heavy Assault Rifle Advanced Assault Cannon [Rating: 48] Favorites ----------- Power Deuterium Engine Engine Deuterium Engine Power Core Light Nuclear Core Propulsion Medium Treads Treads Medium Treads Utility High-capacity Storage Unit Device Improved Heat Sink Storage High-capacity Storage Unit Processor Advanced Targeting Computer Hackware Hacking Suite Protection Improved Light Armor Plating Weapon Enhanced Autogun Energy Cannon Ion Cannon Ballistic Gun Enhanced Autogun Ballistic Cannon Advanced Assault Cannon Launcher Rocket Launcher Build | -11 -10 -9 -8 -8 -8 ------- Run | Yrd Mat Mat Mat Sto Gar Slots Evolved 4 | . . 2 2 . . Power . | . . . . . . Propulsion 1 | . . . 1 . . Utility 2 | . . 1 1 . . Weapon 1 | . . 1 . . . Parts Attached 116 | 6 5 9 44 27 25 Power 13 | 1 . 2 6 3 1 Engine 7 | 1 . . 4 2 . Core 6 | . . 2 2 1 1 Reactor . | . . . . . . Propulsion 27 | 2 . 1 12 7 5 Treads 27 | 2 . 1 12 7 5 Leg . | . . . . . . Wheel . | . . . . . . Hover . | . . . . . . Flight . | . . . . . . Utility 36 | 1 3 3 13 6 10 Device 9 | . 1 . 3 2 3 Storage 4 | 1 1 1 1 . . Processor 3 | . 1 . . 2 . Hackware 4 | . . . 1 . 3 Protection 16 | . . 2 8 2 4 Artifact . | . . . . . . Weapon 40 | 2 2 3 13 11 9 Energy Gun . | . . . . . . Energy Cannon 4 | . . 1 3 . . Ballistic Gun 27 | 2 2 2 5 7 9 Ballistic Cannon 7 | . . . 5 2 . Launcher 2 | . . . . 2 . Special Weapon . | . . . . . . Impact Weapon . | . . . . . . Slashing Weapon . | . . . . . . Piercing Weapon . | . . . . . . Special Melee Weapon . | . . . . . . Unidentified Prototypes 4 | . . 1 1 2 . Parts Lost 20 | . . 1 15 4 . Power 3 | . . . 3 . . Propulsion 7 | . . . 6 1 . Utility 3 | . . . 1 2 . Weapon 7 | . . 1 5 1 . Highest Loss Streak 6 | . . 1 6 3 . To Critical Strikes . | . . . . . . Average Slot Usage (%) 96 | . 100 99 99 95 91 Engine 7 | . 14 2 8 7 7 Core 1 | . . 8 . 1 1 Treads 26 | . 28 22 26 24 27 Device 6 | . 13 . 8 3 6 Storage 9 | . 14 11 9 9 9 Processor 4 | . . 11 . 13 2 Hackware 2 | . . . 5 . 1 Protection 10 | . . 11 12 8 8 Energy Cannon 1 | . . 2 2 . . Ballistic Gun 18 | . 28 30 11 14 26 Ballistic Cannon 7 | . . . 12 10 . Peak Build Rating 48 | 6 13 21 41 41 48 Average Rating 35 | 5 10 18 36 34 43 On Entrance 19 | . 6 11 21 41 35 Naked Turns . | . . . . . . Heaviest Build 85 | 12 30 60 80 74 85 Greatest Support 79 | 40 40 40 79 76 76 Greatest Overweight (x) 1 | . . 1 1 1 1 Average Overweight (x) . | . . . . . . Largest Inventory Capacity 20 | 8 15 20 20 20 20 Average Capacity 19 | 7 14 17 20 20 20 Most Carried 20 | 7 15 20 20 20 20 Average Carried 18 | 4 12 16 18 19 19 Final Capacity 20 | 8 15 20 20 20 20 Final Carried 20 | 7 15 20 20 20 19 Class Distribution -------------------- 69% | Tank 17% | Gunner 7% | Mutant 3% | Commander-Gunner Dominant Class ---------------- Mutant | -10/Materials Tank | -9/Materials Tank | -8/Materials Gunner | -8/Storage Tank | -8/Garrison Resources | -11 -10 -9 -8 -8 -8 ----------- Run | Yrd Mat Mat Mat Sto Gar Matter Collected 5594 | 118 23 461 2224 1484 1284 Remotely . | . . . . . . Salvage Created 5582 | 107 71 418 2413 1411 1162 Parts 326 | 5 8 26 123 83 81 Haulers Intercepted 13 | . . 1 6 6 . Recyclers Shooed 1 | 1 . . . . . Parts Field Recycled . | . . . . . . Retrieved Matter . | . . . . . . Parts Self-Destructed . | . . . . . . Prevented . | . . . . . . Kills | -11 -10 -9 -8 -8 -8 ------- Run | Yrd Mat Mat Mat Sto Gar Combat Hostiles Destroyed 117 | . 3 8 46 25 35 Guns 76 | . 3 8 19 11 35 Cannons 36 | . . . 26 10 . AOE 4 | . . . . 4 . Classes Destroyed 19 | 2 2 3 8 2 2 Worker 1 | . . . 1 . . Builder 4 | . . . 1 3 . Tunneler 2 | 2 . . . . . Hauler 13 | . . 1 6 6 . Recycler 7 | 1 . . 3 3 . Mechanic 1 | . . . . 1 . Operator 3 | . . . 1 2 . Watcher 7 | . 1 . 5 1 . Swarmer 30 | . 3 . 8 3 16 Cutter 2 | . . . . . 2 Grunt 47 | . . 6 24 9 8 Brawler 2 | . . . 1 1 . Duelist 2 | . . . 1 1 . Sentry 24 | . . 2 8 9 5 Demolisher 2 | . . . . 2 . Specialist 4 | . . . 2 . 2 Hunter 1 | . . . 1 . . Programmer 2 | . . . . . 2 Heavy 1 | . . . 1 . . Best Kill Streak 7 | 3 3 2 7 5 7 Combat Bots Only 7 | . 3 2 5 5 7 Max Kills in Single Turn 2 | 1 2 1 2 2 2 Gunslinging 1 | . 1 . . . 1 Exploded 2 | . . . . 2 . Melee . | . . . . . . Uniques/NPCs Destroyed . | . . . . . . Combat | -11 -10 -9 -8 -8 -8 -------- Run | Yrd Mat Mat Mat Sto Gar Hostile Shots Fired 564 | . 11 25 267 110 151 Missed 142 | . 3 7 65 24 43 Damage Taken 6743 | . 68 221 3449 1541 1464 Core 596 | . . 39 203 234 120 Absorbed by Shields . | . . . . . . Redirected to Shielding 19 | . . . . 19 . Regen/Repaired (Parts) 279 | . . 59 . 220 . Core Remaining (%) 96 | 100 100 90 . . . Volleys Fired 374 | 7 5 19 151 87 105 Largest 3 | 2 2 3 3 3 3 Hottest 148 | 40 46 69 148 121 83 Shots Fired 995 | 14 10 57 417 210 287 Gun 655 | 14 10 57 188 99 287 Cannon 335 | . . . 229 106 . Launcher 5 | . . . . 5 . Special . | . . . . . . Kinetic 916 | 14 10 57 343 205 287 Thermal 74 | . . . 74 . . Explosive 5 | . . . . 5 . Electromagnetic . | . . . . . . Robot Hit Streak 19 | 4 4 9 17 19 13 Robot Miss Streak 6 | 3 4 2 6 4 5 Penetration Max . | . . . . . . Secondary Targets 18 | . 2 2 1 . 13 Max Gunslinging Chain 1 | . 1 1 1 . 1 Shots Hit Robots 551 | 7 5 34 241 124 140 Core Hits 244 | 4 4 15 100 65 56 Critical Kills 2 | . . . 1 1 . Critical Parts Destroyed 2 | . . . . 1 1 Critical Strikes 18 | . . . 11 6 1 Meltdown 1 | . . . 1 . . Destroy 3 | . . . . 2 1 Blast 14 | . . . 10 4 . Melee Attacks . | . . . . . . Impact . | . . . . . . Slashing . | . . . . . . Piercing . | . . . . . . Sneak Attacks . | . . . . . . Combat Hostiles . | . . . . . . Follow-up Attacks . | . . . . . . Damage Inflicted 11605 | 96 73 534 5285 3091 2526 Guns 6367 | 96 73 534 2071 1067 2526 Cannons 4927 | . . . 3214 1713 . Explosions 311 | . . . . 311 . Melee . | . . . . . . Ramming . | . . . . . . Kinetic 10095 | 96 73 534 4086 2780 2526 Thermal 1199 | . . . 1199 . . Explosive 311 | . . . . 311 . Electromagnetic . | . . . . . . Impact . | . . . . . . Slashing . | . . . . . . Piercing . | . . . . . . Highest Corruption 8 | . 2 . 7 7 8 Average Corruption 6 | . 2 . 6 7 7 Corruption Purged . | . . . . . . Corruption Blocked . | . . . . . . Effects 289 | . . . 125 65 99 Message Errors 82 | . . . 32 23 27 Matter Fused 55 | . . . 25 11 19 Heat Flow Errors 37 | . . . 17 6 14 Energy Discharges 30 | . . . 11 8 11 Parts Rejected 3 | . . . 3 . . Parts Fused 3 | . . . 2 1 . Data Loss (minor) 34 | . . . 13 8 13 Data Loss (major) 8 | . . . 4 1 3 Misfires 15 | . . . 7 3 5 Alerts 8 | . . . 4 2 2 Weapon Failures 14 | . . . 7 2 5 Overload Shots . | . . . . . . Overflow Damage 69 | . . . 16 53 . Projectiles 69 | . . . 16 53 . Explosions . | . . . . . . Melee . | . . . . . . Knockbacks 23 | . . . 12 11 . Impact . | . . . . . . Kinetic 19 | . . . 10 9 . Secondary 4 | . . . 2 2 . Self-Inflicted Damage 42 | . . . . 42 . Shots 1 | . . . . 1 . Rammed . | . . . . . . Targets Rammed . | . . . . . . Kicked . | . . . . . . Crushed . | . . . . . . Highest Temperature 594 | . . 53 498 529 594 Average Temperature 108 | . . 17 106 109 120 Received Heat Transfer 2223 | . . 114 1179 549 381 Effects 29 | . . . 4 10 15 Shutdowns 5 | . . . 2 1 2 Energy Bleed 6 | . . . . 1 5 Interference 11 | . . . 2 3 6 Matter Decay 1 | . . . . 1 . Short Circuit 1 | . . . . 1 . Damage (minor) 2 | . . . . . 2 Damage (major) 3 | . . . . 3 . Siege Activations . | . . . . . . Robots Corrupted . | . . . . . . Combat Hostiles . | . . . . . . Parts Fried . | . . . . . . Impact Corruptions . | . . . . . . Robots Melted 1 | . . . 1 . . Combat Hostiles 1 | . . . 1 . . Parts Melted 4 | . . . 4 . . Heat Transferred 1924 | . . . 1924 . . Parts Sabotaged . | . . . . . . Parts Stolen . | . . . . . . Parts Stripped . | . . . . . . Power Chain Reactions . | . . . . . . Alert | -11 -10 -9 -8 -8 -8 ------- Run | Yrd Mat Mat Mat Sto Gar Peak Influence 2226 | 15 112 159 514 672 2226 Initial 337 | . 9 46 1 173 337 Average 591 | 5 60 69 338 465 1324 Maximum Alert Level 5 | . . . 2 2 5 Low Security (%) 18 | 100 100 100 11 2 . Level 1 25 | . . . 50 26 1 Level 2 30 | . . . 38 71 6 Level 3 6 | . . . . . 23 Level 4 11 | . . . . . 42 Level 5 6 | . . . . . 25 High Security . | . . . . . . Max Security . | . . . . . . Squads Dispatched 11 | . . . 8 3 . Investigation 2 | . . . 1 1 . Extermination . | . . . . . . Reinforcement 5 | . . . 4 1 . Assault 3 | . . . 2 1 . Garrison 1 | . . . 1 . . Intercept . | . . . . . . Searches Triggered . | . . . . . . Construction Impeded . | . . . . . . Haulers Reinforced . | . . . . . . Active Scanning Responses . | . . . . . . Cargo Convoy Interrupts . | . . . . . . Stealth | -11 -10 -9 -8 -8 -8 --------- Run | Yrd Mat Mat Mat Sto Gar Distress Signals 6 | . . 1 3 2 . Communications Jammed . | . . . . . . Distress Signals . | . . . . . . Times Spotted 151 | . 6 10 62 35 38 Peak Tracking Total 6 | . 3 2 6 6 6 Tactical Retreats 15 | . . 1 3 7 4 Traps | -11 -10 -9 -8 -8 -8 ------- Run | Yrd Mat Mat Mat Sto Gar Traps Triggered 8 | . 1 . 3 2 2 Indirectly . | . . . . . . Trap Hack Attempts . | . . . . . . Triggered . | . . . . . . Disarmed . | . . . . . . Reprogrammed . | . . . . . . Reused . | . . . . . . Traps Extracted . | . . . . . . Installed . | . . . . . . Triggered . | . . . . . . Machines | -11 -10 -9 -8 -8 -8 ---------- Run | Yrd Mat Mat Mat Sto Gar Machines Disabled 12 | . . . 3 5 4 Max in Single Turn 2 | . . . 1 2 1 Garrison Access 1 | . . . 1 . . Garrison Relay 3 | . . . . . 3 Machines Repaired . | . . . . . . Machines Dismantled . | . . . . . . Machines Sabotaged . | . . . . . . Overloaded Fab Kills . | . . . . . . Hacking | -11 -10 -9 -8 -8 -8 --------- Run | Yrd Mat Mat Mat Sto Gar Machines Accessed 26 | . 1 6 6 10 3 Terminals 23 | . 1 5 6 8 3 Fabricators . | . . . . . . Repair Stations 2 | . . 1 . 1 . Recycling Units . | . . . . . . Scanalyzers . | . . . . . . Garrison Access 1 | . . . . 1 . Total Hacks 69 | . 2 13 19 29 6 Successful 36 | . 2 7 11 14 2 Failed 33 | . . 6 8 15 4 Catastrophic 4 | . . . 1 1 2 Database Lockouts . | . . . . . . Manual 50 | . 2 12 15 21 . Terminals 61 | . 2 10 19 24 6 Fabricators . | . . . . . . Repair Stations 7 | . . 3 . 4 . Recycling Units . | . . . . . . Scanalyzers . | . . . . . . Garrison Access 1 | . . . . 1 . Terminal Hacks 19 | . 1 2 8 6 2 Robot Analysis 2 | . 1 1 . . . Open Door 2 | . . . . 2 . Level Access Points 1 | . . . . 1 . Branch Access Points 1 | . . . . 1 . Emergency Access Points 1 | . . . . . 1 Garrison Index 1 | . . . 1 . . Alert Level 3 | . . . 3 . . Unreport Threat 4 | . . . 3 1 . Locate Traps 2 | . . . 1 1 . Hauler Manifests 1 | . . 1 . . . Garrison Registry 1 | . . . . . 1 Fabricator Hacks . | . . . . . . Repair Station Hacks 6 | . . 2 . 4 . Scan Component 3 | . . 1 . 2 . Repair 3 | . . 1 . 2 . Recycling Unit Hacks . | . . . . . . Scanalyzer . | . . . . . . Garrison Access Hacks 1 | . . . . 1 . Unlock Access 1 | . . . . 1 . Unauthorized Hacks 10 | . 1 3 3 3 . Terminals 10 | . 1 3 3 3 . Botnet 10 | . 1 3 3 3 . Fabricators . | . . . . . . Repair Stations . | . . . . . . Recycling Units . | . . . . . . Scanalyzers . | . . . . . . Garrison Access . | . . . . . . Data Cores Recovered 1 | . . . . 1 . Used . | . . . . . . Hacking Detections 18 | . 1 4 6 4 3 Full Trace Events 3 | . . . . 1 2 Feedback Events 1 | . . . . . 1 Corruption 1 | . . . . . 1 Feedback Blocked . | . . . . . . Robot Schematics Acquired . | . . . . . . Robots Built . | . . . . . . Authchips . | . . . . . . Time . | . . . . . . Total Robot Build Rating . | . . . . . . Part Schematics Acquired . | . . . . . . Parts Built . | . . . . . . Authchips . | . . . . . . Time . | . . . . . . Total Part Build Rating . | . . . . . . Parts Repaired 3 | . . 1 . 2 . Time 102 | . . 32 . 70 . Parts Recycled . | . . . . . . Recycled Matter . | . . . . . . Retrieved Matter . | . . . . . . Retrieved Components . | . . . . . . Parts Scanalyzed . | . . . . . . Part Schematics Acquired . | . . . . . . Parts Damaged . | . . . . . . Bothacking | -11 -10 -9 -8 -8 -8 ------------ Run | Yrd Mat Mat Mat Sto Gar Used RIF Installer 2 | . . . . . 2 Watcher Feeds 1 | . . . . . 1 Robots Hacked . | . . . . . . Non-combat . | . . . . . . Combat . | . . . . . . Robot Hacks Applied . | . . . . . . Relay Couplers Released 14 | . . . 3 . 11 Machine Destruction 14 | . . . 3 . 11 Attached 1 | . . . . . 1 Fabnet Peak Effective % . | . . . . . . Robots Rewired . | . . . . . . Allies Hacked . | . . . . . . Hacks Repelled . | . . . . . . Allies | -11 -10 -9 -8 -8 -8 -------- Run | Yrd Mat Mat Mat Sto Gar Total Allies 12 | . . . . 10 2 Largest Group 10 | . . . . 10 2 Highest-Rated Group 173 | . . . . 173 62 Highest-Rated Ally 31 | . . . . 29 31 Total Orders 5 | . . . . . 5 EXPLORE 3 | . . . . . 3 RETURN 2 | . . . . . 2 Ally Attacks 58 | . . . . 55 3 Total Damage 707 | . . . . 681 26 Kills 7 | . . . . 7 . Allies Corrupted . | . . . . . . Allies Melted . | . . . . . . Intel | -11 -10 -9 -8 -8 -8 ------- Run | Yrd Mat Mat Mat Sto Gar Robot Analysis Total 2 | . 1 1 . . . Derelict Logs Recovered . | . . . . . . Drone Launches 6 | . . . . 2 4 Drone Recoveries 5 | . . . . 2 3 Exploration | -11 -10 -9 -8 -8 -8 ------------- Run | Yrd Mat Mat Mat Sto Gar Turns Passed 10378 | 139 320 1000 4073 2032 2814 Spaces Moved 4573 | 60 175 438 1950 859 1091 Core 3 | 3 . . . . . Treads 4570 | 57 175 438 1950 859 1091 Legs . | . . . . . . Wheels . | . . . . . . Hover . | . . . . . . Flight . | . . . . . . Fastest Speed 50 | 50 160 160 160 160 160 Average Speed 181 | 154 160 195 172 177 198 Slowest Speed 245 | 160 160 240 240 245 243 Overloaded Moves . | . . . . . . Propulsion Burnouts . | . . . . . . Robots Hopped . | . . . . . . Cave-ins Triggered . | . . . . . . Exploration Rate (%) 57 | 6 32 33 93 84 95 Regions Visited 5 Branch Regions 1 Pre-discovered Areas . | . . . . . . Known Exits Taken 3 | . 1 1 . 1 . Unknown Exits Taken 2 | 1 . . 1 . . Scrap Searched . | . . . . . . Spaces Dug 2 | . . . 2 . . Terrain Destroyed 89 | . . . 43 45 1 Melee . | . . . . . . Projectile 67 | . . . 43 23 1 AOE 22 | . . . . 22 . Terrain Rammed . | . . . . . . Walls Destroyed . | . . . . . . Machines Disabled . | . . . . . . Actions | -11 -10 -9 -8 -8 -8 --------- Run | Yrd Mat Mat Mat Sto Gar Total 6110 | 90 209 546 2393 1241 1631 Wait 867 | 10 3 51 186 242 375 Move 4569 | 59 174 437 1949 859 1091 Hop . | . . . . . . Pick Up 97 | 8 14 16 34 14 11 Fast Attach 25 | 5 . 2 6 5 7 Attach 38 | 1 1 2 21 8 5 Detach 2 | . . . 1 . 1 Swap 54 | . 4 6 17 14 13 Drop 84 | . 8 13 28 12 23 Fire 374 | 7 5 19 151 87 105 Melee . | . . . . . . Ram . | . . . . . . Kick . | . . . . . . Crush . | . . . . . . Escape Stasis . | . . . . . . Rewire . | . . . . . . Trap . | . . . . . . Miscellaneous . | . . . . . . Route ------- -11/Scrapyard -10/Materials -9/Materials -8/Materials (discovered 4 exits: *Fac x3 / *Sto) -8/Storage (discovered 3 exits: *Fac / Rec / Gar) -8/Garrison (discovered 3 exits: *Rec x3) History --------- Turn | Location | Event 6 | -11/Scrapyard | Discovered new exit (range 14) 140 | -11/Scrapyard | Entered Materials 318 | -10/Materials | Build established: Mutant 350 | -10/Materials | Discovered new exit (range 10) 459 | -10/Materials | Identified exit to Materials 460 | -10/Materials | Entered another Materials area 460 | -9/Materials | Evolved 2 slots: Utility x1, Weapon x1 766 | -9/Materials | Build established: Tank 1369 | -9/Materials | Discovered new exit (range 16) 1403 | -9/Materials | Identified exit to Materials 1449 | -9/Materials | Repaired Hvy. Assault Rifle 1460 | -9/Materials | Entered another Materials area 1460 | -8/Materials | Evolved 2 slots: Propulsion x1, Utility x1 1545 | -8/Materials | Garrison activated, responded to threat 1595 | -8/Materials | Lost 3 parts (1p2w) 1733 | -8/Materials | Lost 6 parts (1p4n1w) 1912 | -8/Materials | Discovered new exit (range 6) 1968 | -8/Materials | Lost 4 parts (1p1u2w) 2450 | -8/Materials | Discovered new exit (range 7) 3212 | -8/Materials | Discovered new exit (range 16) 5361 | -8/Materials | Discovered new exit (range 8) 5460 | -8/Materials | First assault squad dispatched 5533 | -8/Materials | Entered Storage 6108 | -8/Storage | Core integrity fell below 50% 6169 | -8/Storage | Lost 3 parts (1n1u1w) 6380 | -8/Storage | Assisted by bots powering up and referring to "LRC-V3" 6602 | -8/Storage | Repaired Med. Treads 6630 | -8/Storage | Repaired Lgt. Treads 6670 | -8/Storage | Build established: Commander-Gunner 6733 | -8/Storage | First assault squad dispatched 6786 | -8/Storage | Lost 8 allies 6800 | -8/Storage | Discovered new exit (range 8) 6823 | -8/Storage | Identified exit to Factory 7027 | -8/Storage | Build established: Gunner 7218 | -8/Storage | Identified exit to Recycling 7565 | -8/Storage | Identified exit to Garrison 7565 | -8/Storage | Entered Garrison 7619 | -8/Garrison | Core integrity fell below 20% 7776 | -8/Garrison | Triggered checkpoint 7826 | -8/Garrison | Destroyed 7 combat bots 7855 | -8/Garrison | Triggered checkpoint 7969 | -8/Garrison | Discovered exit to Recycling (range 10) 7995 | -8/Garrison | Triggered checkpoint 8143 | -8/Garrison | Triggered checkpoint 8245 | -8/Garrison | Discovered exit to Recycling (range 33) 8287 | -8/Garrison | Triggered checkpoint 8463 | -8/Garrison | Triggered checkpoint 8495 | -8/Garrison | Build established: Tank 8569 | -8/Garrison | Discovered exit to Recycling (range 23) 8699 | -8/Garrison | Triggered checkpoint 9670 | -8/Garrison | Rescued a captive Derelict 9679 | -8/Garrison | Rescued a captive Derelict 9809 | -8/Garrison | Discovered exit to Recycling (range 51) 9809 | -8/Garrison | Discovered exit to Recycling (range 76) 9809 | -8/Garrison | Discovered exit to Recycling (range 83) 9904 | -8/Garrison | Installed Relay Interface Framework 10052 | -8/Garrison | Expanded RIF knowledge: Watcher Feeds 10123 | -8/Garrison | Garrison Relay disabled 10248 | -8/Garrison | Garrison Relay disabled 10367 | -8/Garrison | Triggered checkpoint 10370 | -8/Garrison | Garrison Relay disabled 10379 | -8/Garrison | Destroyed by X-57 Shotgunner with High-powered Shotgun Last Messages --------------- 10252_ Acquired Relay Coupler [Hunter]. 10253_ C&E